{"text_format":"2","workbook":"xlsx","n_sheets":3,"sheets":["StammdatenBTR","StammdatenGesamt","Definitionen"],"not_rendered":{"charts":0,"images":2,"macros":0,"external_links":0,"defined_names":0,"comments":0,"pivot_tables":0},"unopened":[],"bounds":{"document_bytes":16777216,"sheet_cells":100000,"run_cost":"one","rows_first":2000,"rows_last":500,"rows_between":2000,"halvings":0,"cell_chars":16384,"cell_head_chars":4096},"cells_cut":0,"cells_raw":0,"read":"whole","date_system":"1900"}

{"sheet":"StammdatenBTR","index":0,"n_rows":79,"n_cols":13,"rows_kept":79,"cut":false,"hidden":false,"merged":[[1,0,1,2],[2,0,2,2],[3,0,3,2],[5,3,5,4],[54,0,55,0],[6,3,6,4],[8,0,8,1],[20,0,28,0],[48,0,48,1]]}
[]
["Redispatch 2.0"]
["Erfassung von Stammdaten einer Steuerbaren Ressource"]
["Erfassungsbogen für Anlagenbetreiber zur Meldung an den Netzbetreiber. Dieser Reiter enthält fast alle \"initialen Stammdaten\", die im Redispatch 2.0 vom EIV an den Netzbetreiber zu senden sind. Daneben sind aber auch Teile der \"angereicherten Stammdaten\" enthalten, welche der Anschlussnetzbetreiber (ANB) im Rahmen der offiziellen Prozesse auf separatem Wege vom Anlagenbetreiber ermitteln müsste. Damit ist dieser Erfassungsbogen keinem der offiziellen Redispatch 2.0 Use Cases zuzuordnen."]
[]
["Steuerbare Ressource"]
["Klarname (optional)","(max 35 Zeichen) ",null,"Bei W-Codes (EIC): Displayname. Ansonsten: lesbarer Klarname gemäß folgender Konvention: Konventionelle Kraftwerke: ORTSNAME_KW- TYP_BLOCK bzw.  EE-SEE: ORTSNAME_ENERGIETRAEGER_LFD-Nr"]
[]
["Marktpartner-IDs bitte mit dazugehöriger Codierung als Präfix angeben: \"NDE\" für BDEW Code, \"A10\" für eine Global Location Number. Beispiel: \"NDE0000000000000\" (Präfix + 13 Stellen)"]
["Einsatzverantwortlicher","Marktpartner-ID"]
["Energieträger","Auswahl"]
["Vergütungsart","Auswahl"]
["Abrufart","Auswahl"]
["Bilanzierungsmodell","Auswahl"]
[]
["Steuerbarkeit","(im Aufforderungsfall von EIV auszufüllen, sonst von NB)"]
["Fixierung","Auswahl"]
["Einheit","Auswahl"]
["Schrittweite (optional)","Schrittweite in angegebener Einheit, sofern Anlage in gleichmäßigen Schritten steuerbar. Andernfalls bitte 0 eintragen und mögliche Stufen unten manuell eintragen."]
["Stufen ","Wert 1"]
["Sofern Schrittweite angegeben: bitte nur Wert 1 und Wert 2 mit minimaler und maximaler Leistung befüllen. Andernfalls bitte alle fahrbaren Stufen angeben (max. 10)","Wert 2"]
[null,"(falls zutreffend) Wert 3"]
[null,"(falls zutreffend) Wert 4"]
[null,"(falls zutreffend) Wert 5"]
[null,"(falls zutreffend) Wert 6"]
[null,"(falls zutreffend) Wert 7"]
[null,"(falls zutreffend) Wert 8"]
[null,"(falls zutreffend) Wert 9"]
[null,"(falls zutreffend) Wert 10"]
[]
["Nur auszufüllen, falls Aufforderungsfall"]
["Abrufart_Aufforderungsfall","Auswahl"]
["Bearbeitungszeit EIV","Zeit in Minuten von Eingang einer Aufforderung beim EIV bis zur Umsetzung in der Anlage."]
[]
["Technische Parameter"]
["Fahrbare Mindesterzeugung","MW, max. 3 Nachkommastellen"]
[null,null,"Einheit","Wert"]
["Lastgradient Nennleistung","enthält die durchschnittliche Leistungsänderungsgeschwindigkeit bezogen auf einen Betriebszustand bei Leistungserhöhung, abgeleitet aus der Zeitdauer der Leistungsänderung zwischen der minimalen Produktionsleistung bis zur Nennproduktionsleistung  MW/min.","MW/min",null,"Muss nur ausgefüllt werden, wenn Lastgradient kleiner als 20%/min bezogen auf die Nettonennleistung"]
["Lastgradient Mindestleistung","enthält die durchschnittliche Leistungsänderungsgeschwindigkeit bezogen auf einen Betriebszustand bei Leistungsreduzierung, abgeleitet aus der Zeitdauer der Leistungsänderung zwischen der minimalen Produktionsleistung bis zur Nennproduktionsleistung in MW/min","MW/min",null,"Muss nur ausgefüllt werden, wenn Lastgradient kleiner als 20%/min bezogen auf die Nettonennleistung"]
["Nur bei thermischen Kraftwerken > 1 MW (ab 10 MW Datenlieferung nach SO-VO für konv. Kraftwerke)"]
["Mindestbetriebszeit","[min] typischer Zeitraum, innerhalb dessen die Anlage nach erfolgtem Start mindestens Leistung in das Netz einspeisen muss."]
["Mindeststillstandszeit","[min] "]
["Anfahrzeit kalt","[min] "]
["Anfahrzeit warm","[min] "]
["Hochfahrzeit kalt","[min] "]
["Hochfahrzeit warm","[min] "]
["Abfahrzeit","[min] typischer Zeitraum, innerhalb dessen ausgehend von der Mindestwirkleistungseinspeisung eine Netztrennung erreicht wird."]
[]
["Enthaltene Technische Ressourcen",null,"1. TR","2. TR (falls zutreffend)","3. TR (falls zutreffend)","4. TR (f.z.)","5. TR (f.z.)","6. TR (f.z.)","7. TR (f.z.)","8. TR (f.z.)","9. TR (f.z.)","10. TR (f.z.)","weitere TR nach Bedarf ergänzen"]
["MaStR-Nr (optional)","15- oder 17-stellige alphanumerische ID"]
["Klarname (optional)","(max 35 Zeichen) Bei W-Codes (EIC): Displayname. Ansonsten: lesbarer Klarname gemäß folgender Konvention: Konventionelle Kraftwerke: ORTSNAME_KW- TYP_BLOCK bzw.  EE-SEE: ORTSNAME_ENERGIETRAEGER_LFD-Nr"]
["Typ","Auswahl"]
["Code Kraftwerk (optional für SSE)","EIC W-Code des übergeordneten Kraftwerkes im Falle von Stromerzeugungs- und - speichereinheiten (SEE / SSE). Für SSE ist die Angabe des W-Codes des übergeordneten Kraftwerks im Prinzip optional; verpflichtend wird sie nur, wenn dieser KW- Code aus anderweitigen Gründen benötigt werden sollte und die SSE explizit zur Übermittlung dieses Datums aufgefordert wurde. Beispiel: \"11W1234567890123\""]
["EEG-Anlagenschlüssel (falls zutreffend)","Anlagenschlüssel 1"]
["(sofern mehr als drei: mehrere Einträge pro Feld können durch \"&\" von einander getrennt werden)","Anlagenschlüssel 2"]
[null,"Anlagenschlüssel 3"]
["Abrechnungsmodell","Auswahl"]
["Betreiber der TR","Marktpartner-ID"]
[]
["Technische Parameter"]
["Nettonennleistung Erzeugung (optional)","[MW]"]
["Nettoengpassleistung Erzeugung (optional)","[MW]"]
["Bruttonennleistung","[MW]"]
[]
["Nur PV-Anlagen"]
["Wechselrichterleistung kumuliert","[MW]"]
["Absenkung 70%","Ja/Nein","Nein","Nein","Nein","Nein","Nein","Nein","Nein","Nein","Nein","Nein"]
[]
["Nur Windenergieanlagen"]
["Anlagentyp"]
["Nabenhöhe","[m]"]
[]
["Nur Speicher"]
["Nettonennleistung Verbrauch","[MW]"]
["Nettoengpassleistung Verbrauch","[MW]"]
["Gesamtwirkungsgrad Speicher","[%] ganze Zahl"]
["Nutzbarer Energieinhalt","[MWh] Maximal möglicher Energieinhalt eines Speichers, der zur Verfügung steht, unabhängig vom Speichermedium und bezogen auf die vom Speichersystem lieferbare elektrische Energie. Dezimalzahl, max 6 Nachkommastellen"]
["max. Wirkleistung Einspeichern","[MW] Dezimalzahl, max 3 Nachkommastellen"]
["max. Wirkleistung Ausspeichern","[MW] Dezimalzahl, max 3 Nachkommastellen"]

{"sheet":"StammdatenGesamt","index":1,"n_rows":102,"n_cols":15,"rows_kept":102,"cut":false,"hidden":false,"merged":[[70,0,71,0],[1,0,1,4],[2,0,2,4],[11,0,11,1],[14,1,14,3],[10,2,11,3],[3,0,3,4],[5,5,5,6],[9,5,9,6],[8,5,8,6],[7,5,7,6],[61,0,61,1],[33,0,41,0],[28,1,28,4],[14,5,14,6]]}
[]
["Redispatch 2.0"]
["Erfassung von Stammdaten einer Steuerbaren Ressource"]
["Maßgebliche Gesamtübersicht. Die meisten Daten müssen im Reiter \"StammdatenBTR\" angegeben werden. "]
[]
["Gültig ab (optional)","UTC, Format yyyy-mm-ddThh:mm:ssZ",null,null,null,"Bitte als Text formatieren, nicht als Datum, damit keine Verwechslung mit Lokalzeit"]
[]
["Steuerbare Ressource",null,"EIV","NB"]
["Ressourcen ID","11-stellig alphanumerisch, beginnt mit \"C\"",null,"x"]
["Klarname (optional)","(max 35 Zeichen) ","o","o",{"$f":"StammdatenBTR!C7","v":0},"Bei W-Codes (EIC): Displayname. Ansonsten: lesbarer Klarname gemäß folgender Konvention: Konventionelle Kraftwerke: ORTSNAME_KW- TYP_BLOCK bzw.  EE-SEE: ORTSNAME_ENERGIETRAEGER_LFD-Nr"]
[]
["Marktpartner-IDs bitte mit dazugehöriger Codierung als Präfix angeben: \"NDE\" für BDEW Code, \"A10\" für eine Global Location Number. Beispiel: \"NDE0000000000000\" (Präfix + 13 Stellen)"]
["Anschlussnetzbetreiber","Marktpartner-ID",null,"x"]
["Anweisender Netzbetreiber","Marktpartner-ID",null,"x"]
["(Weitere) Betroffene Netzbetreiber","„NB-Kaskade“ Inkl. ANB und aller vorgelagerter NB des ANB bis einschl. ÜNB; Reihenfolge: Beginnend bei ANB bis ÜNB (1-6 Einträge). Zusätzliche Spalten für \"weitere betroffene Netzbetreiber\", die nicht direkt in der Hierarchie stehen, aber an mindestens einen der NB angeschlossen und von Leistungsänderungen der Anlage betroffen sind (Reihenfolge beliebig)",null,null,"Betroffene NB (Hierarchie)","Weitere Betroffene NB (falls zutreffend, Reihenfolge beliebig)",null,"…"]
[null,"Marktpartner-ID",null,null,{"$f":"E13","v":0}]
[null,"Marktpartner-ID (falls zutreffend)",null,"x"]
[null,"Marktpartner-ID (falls zutreffend)",null,"x"]
[null,"Marktpartner-ID (falls zutreffend)",null,"x"]
[null,"Marktpartner-ID (falls zutreffend)",null,"x"]
[null,"Marktpartner-ID (falls zutreffend)",null,"x"]
["Einsatzverantwortlicher","Marktpartner-ID","x",null,{"$f":"StammdatenBTR!C10","v":0}]
["Energieträger","Auswahl",null,"x",{"$f":"StammdatenBTR!C11","v":0}]
["Vergütungsart","Auswahl",null,"x",{"$f":"StammdatenBTR!C12","v":0}]
["Abrufart","Auswahl","x",null,{"$f":"StammdatenBTR!C13","v":0}]
["Bilanzierungsmodell","Auswahl","x",null,{"$f":"StammdatenBTR!C14","v":0}]
["Regelzone","Auswahl",null,"x"]
[]
["Steuerbarkeit","(im Aufforderungsfall von EIV auszufüllen, sonst von NB - in jedem Fall im Reiter \"StammdatenBTR\")"]
["Fixierung","Auswahl",null,null,{"$f":"StammdatenBTR!C17","v":0}]
["Einheit","Auswahl",null,null,{"$f":"StammdatenBTR!C18","v":0}]
["Schrittweite (optional)","Schrittweite in angegebener Einheit, sofern Anlage in gleichmäßigen Schritten steuerbar. Andernfalls bitte 0 eintragen und mögliche Stufen unten manuell eintragen.",null,null,{"$f":"StammdatenBTR!C19","v":0}]
["Stufen ",null,null,"Wert 1",{"$f":"StammdatenBTR!C20","v":0}]
["Sofern Schrittweite angegeben: bitte nur Wert 1 und Wert 2 mit minimaler und maximaler Leistung befüllen. Andernfalls bitte alle fahrbaren Stufen angeben (max. 10)",null,null,"Wert 2",{"$f":"StammdatenBTR!C21","v":0}]
[null,"(falls zutreffend)",null,"Wert 3",{"$f":"StammdatenBTR!C22","v":0}]
[null,"(falls zutreffend)",null,"Wert 4",{"$f":"StammdatenBTR!C23","v":0}]
[null,"(falls zutreffend)",null,"Wert 5",{"$f":"StammdatenBTR!C24","v":0}]
[null,"(falls zutreffend)",null,"Wert 6",{"$f":"StammdatenBTR!C25","v":0}]
[null,"(falls zutreffend)",null,"Wert 7",{"$f":"StammdatenBTR!C26","v":0}]
[null,"(falls zutreffend)",null,"Wert 8",{"$f":"StammdatenBTR!C27","v":0}]
[null,"(falls zutreffend)",null,"Wert 9",{"$f":"StammdatenBTR!C28","v":0}]
[null,"(falls zutreffend)",null,"Wert 10",{"$f":"StammdatenBTR!C29","v":0}]
[]
["Nur auszufüllen, falls Aufforderungsfall"]
["Abrufart_Aufforderungsfall","Auswahl","x",null,{"$f":"StammdatenBTR!C32","v":0}]
["Bearbeitungszeit EIV","Zeit in Minuten von Eingang einer Aufforderung beim EIV bis zur Umsetzung in der Anlage.","x",null,{"$f":"StammdatenBTR!C33","v":0}]
[]
["Technische Parameter"]
["Fahrbare Mindesterzeugung","MW, max. 3 Nachkommastellen","x",null,{"$f":"StammdatenBTR!C36","v":0}]
[{"$nulls":4},"Einheit","Wert"]
["Lastgradient Nennleistung","enthält die durchschnittliche Leistungsänderungsgeschwindigkeit bezogen auf einen Betriebszustand bei Leistungserhöhung, abgeleitet aus der Zeitdauer der Leistungsänderung zwischen der minimalen Produktionsleistung bis zur Nennproduktionsleistung in %/min oder MW/min.","o",null,{"$f":"StammdatenBTR!C38","v":"MW/min"},{"$f":"StammdatenBTR!D38","v":0},"Muss nur ausgefüllt werden, wenn Lastgradient kleiner als 20%/min"]
["Lastgradient Mindestleistung","enthält die durchschnittliche Leistungsänderungsgeschwindigkeit bezogen auf einen Betriebszustand bei Leistungsreduzierung, abgeleitet aus der Zeitdauer der Leistungsänderung zwischen der minimalen Produktionsleistung bis zur Nennproduktionsleistung in %/min oder MW/min","o",null,{"$f":"StammdatenBTR!C39","v":"MW/min"},{"$f":"StammdatenBTR!D39","v":0},"Muss nur ausgefüllt werden, wenn Lastgradient kleiner als 20%/min"]
["Nur bei thermischen Kraftwerken > 1 MW (ab 10 MW Datenlieferung nach SO-VO für konv. Kraftwerke)"]
["Mindestbetriebszeit","[min] typischer Zeitraum, innerhalb dessen die Anlage nach erfolgtem Start mindestens Leistung in das Netz einspeisen muss.","x",null,{"$f":"StammdatenBTR!C41","v":0}]
["Mindeststillstandszeit","[min] ","x",null,{"$f":"StammdatenBTR!C42","v":0}]
["Anfahrzeit kalt","[min] ","x",null,{"$f":"StammdatenBTR!C43","v":0}]
["Anfahrzeit warm","[min] ","x",null,{"$f":"StammdatenBTR!C44","v":0}]
["Hochfahrzeit kalt","[min] ","x",null,{"$f":"StammdatenBTR!C45","v":0}]
["Hochfahrzeit warm","[min] ","x",null,{"$f":"StammdatenBTR!C46","v":0}]
["Abfahrzeit","[min] typischer Zeitraum, innerhalb dessen ausgehend von der Mindestwirkleistungseinspeisung eine Netztrennung erreicht wird.","x",null,{"$f":"StammdatenBTR!C47","v":0}]
[]
["Enthaltene Technische Ressourcen",null,null,null,"1. TR","2. TR (falls zutreffend)","3. TR (falls zutreffend)","4. TR (f.z.)","5. TR (f.z.)","6. TR (f.z.)","7. TR (f.z.)","8. TR (f.z.)","9. TR (f.z.)","10. TR (f.z.)","weitere TR nach Bedarf ergänzen"]
["Ressourcen ID","11-stellig alphanumerisch, beginnt mit \"D\"",null,"x"]
["MaStR-Nr (optional)","15- oder 17-stellige alphanumerische ID","o",null,{"$f":"StammdatenBTR!C50","v":0},{"$f":"StammdatenBTR!D50","v":0},{"$f":"StammdatenBTR!E50","v":0},{"$f":"StammdatenBTR!F50","v":0},{"$f":"StammdatenBTR!G50","v":0},{"$f":"StammdatenBTR!H50","v":0},{"$f":"StammdatenBTR!I50","v":0},{"$f":"StammdatenBTR!J50","v":0},{"$f":"StammdatenBTR!K50","v":0},{"$f":"StammdatenBTR!L50","v":0}]
["Klarname (optional)","(max 35 Zeichen) Bei W-Codes (EIC): Displayname. Ansonsten: lesbarer Klarname gemäß folgender Konvention: Konventionelle Kraftwerke: ORTSNAME_KW- TYP_BLOCK bzw.  EE-SEE: ORTSNAME_ENERGIETRAEGER_LFD-Nr","o",null,{"$f":"StammdatenBTR!C51","v":0},{"$f":"StammdatenBTR!D51","v":0},{"$f":"StammdatenBTR!E51","v":0},{"$f":"StammdatenBTR!F51","v":0},{"$f":"StammdatenBTR!G51","v":0},{"$f":"StammdatenBTR!H51","v":0},{"$f":"StammdatenBTR!I51","v":0},{"$f":"StammdatenBTR!J51","v":0},{"$f":"StammdatenBTR!K51","v":0},{"$f":"StammdatenBTR!L51","v":0}]
["Typ","Auswahl",null,null,{"$f":"StammdatenBTR!C52","v":0},{"$f":"StammdatenBTR!D52","v":0},{"$f":"StammdatenBTR!E52","v":0},{"$f":"StammdatenBTR!F52","v":0},{"$f":"StammdatenBTR!G52","v":0},{"$f":"StammdatenBTR!H52","v":0},{"$f":"StammdatenBTR!I52","v":0},{"$f":"StammdatenBTR!J52","v":0},{"$f":"StammdatenBTR!K52","v":0},{"$f":"StammdatenBTR!L52","v":0}]
["Code Kraftwerk (optional für SSE)","EIC W-Code des übergeordneten Kraftwerkes im Falle von Stromerzeugungs- und - speichereinheiten (SEE / SSE). Für SSE ist die Angabe des W-Codes des übergeordneten Kraftwerks im Prinzip optional; verpflichtend wird sie nur, wenn dieser KW- Code aus anderweitigen Gründen benötigt werden sollte und die SSE explizit zur Übermittlung dieses Datums aufgefordert wurde. Beispiel: \"11W1234567890123\"","o",null,{"$f":"StammdatenBTR!C53","v":0},{"$f":"StammdatenBTR!D53","v":0},{"$f":"StammdatenBTR!E53","v":0},{"$f":"StammdatenBTR!F53","v":0},{"$f":"StammdatenBTR!G53","v":0},{"$f":"StammdatenBTR!H53","v":0},{"$f":"StammdatenBTR!I53","v":0},{"$f":"StammdatenBTR!J53","v":0},{"$f":"StammdatenBTR!K53","v":0},{"$f":"StammdatenBTR!L53","v":0}]
["Zuordnung Speicher","Angabe ob eine SEE über eine zugeordneten SSE verfügt, der die SEE-Leistung (teilweise) aufnehmen kann. Ressourcen-ID. Sofern mehrere SSE genannt werden, bitte durch \"&\" trennen (<TR-ID>&<TR-ID>&…)",null,"x"]
["Marktlokation Erzeugung","MaLo-ID, 11 Ziffern",null,"x"]
["EEG-Anlagenschlüssel","Anlagenschlüssel 1","o",null,{"$f":"StammdatenBTR!C54","v":0},{"$f":"StammdatenBTR!D54","v":0},{"$f":"StammdatenBTR!E54","v":0},{"$f":"StammdatenBTR!F54","v":0},{"$f":"StammdatenBTR!G54","v":0},{"$f":"StammdatenBTR!H54","v":0},{"$f":"StammdatenBTR!I54","v":0},{"$f":"StammdatenBTR!J54","v":0},{"$f":"StammdatenBTR!K54","v":0},{"$f":"StammdatenBTR!L54","v":0}]
["(sofern mehr als drei: mehrere Einträge pro Feld können durch \"&\" von einander getrennt werden)","Anlagenschlüssel 2","o",null,{"$f":"StammdatenBTR!C55","v":0},{"$f":"StammdatenBTR!D55","v":0},{"$f":"StammdatenBTR!E55","v":0},{"$f":"StammdatenBTR!F55","v":0},{"$f":"StammdatenBTR!G55","v":0},{"$f":"StammdatenBTR!H55","v":0},{"$f":"StammdatenBTR!I55","v":0},{"$f":"StammdatenBTR!J55","v":0},{"$f":"StammdatenBTR!K55","v":0},{"$f":"StammdatenBTR!L55","v":0}]
[null,"Anlagenschlüssel 3","o",null,{"$f":"StammdatenBTR!C56","v":0},{"$f":"StammdatenBTR!D56","v":0},{"$f":"StammdatenBTR!E56","v":0},{"$f":"StammdatenBTR!F56","v":0},{"$f":"StammdatenBTR!G56","v":0},{"$f":"StammdatenBTR!H56","v":0},{"$f":"StammdatenBTR!I56","v":0},{"$f":"StammdatenBTR!J56","v":0},{"$f":"StammdatenBTR!K56","v":0},{"$f":"StammdatenBTR!L56","v":0}]
["Abrechnungsmodell","Auswahl","x",null,{"$f":"StammdatenBTR!C57","v":0},{"$f":"StammdatenBTR!D57","v":0},{"$f":"StammdatenBTR!E57","v":0},{"$f":"StammdatenBTR!F57","v":0},{"$f":"StammdatenBTR!G57","v":0},{"$f":"StammdatenBTR!H57","v":0},{"$f":"StammdatenBTR!I57","v":0},{"$f":"StammdatenBTR!J57","v":0},{"$f":"StammdatenBTR!K57","v":0},{"$f":"StammdatenBTR!L57","v":0}]
["Betreiber der TR","Marktpartner-ID","x",null,{"$f":"StammdatenBTR!C58","v":0},{"$f":"StammdatenBTR!D58","v":0},{"$f":"StammdatenBTR!E58","v":0},{"$f":"StammdatenBTR!F58","v":0},{"$f":"StammdatenBTR!G58","v":0},{"$f":"StammdatenBTR!H58","v":0},{"$f":"StammdatenBTR!I58","v":0},{"$f":"StammdatenBTR!J58","v":0},{"$f":"StammdatenBTR!K58","v":0},{"$f":"StammdatenBTR!L58","v":0}]
[]
["Stilllegung vorläufig (falls zutreffend)","Datum yyyy-mm-dd",null,"o"]
["Stilllegung endgültig (falls zutreffend)","Datum yyyy-mm-dd",null,"o"]
[]
["Technische Parameter"]
["Nettonennleistung Erzeugung (optional)","[MW]",null,"o",{"$f":"StammdatenBTR!C61","v":0},{"$f":"StammdatenBTR!D61","v":0},{"$f":"StammdatenBTR!E61","v":0},{"$f":"StammdatenBTR!F61","v":0},{"$f":"StammdatenBTR!G61","v":0},{"$f":"StammdatenBTR!H61","v":0},{"$f":"StammdatenBTR!I61","v":0},{"$f":"StammdatenBTR!J61","v":0},{"$f":"StammdatenBTR!K61","v":0},{"$f":"StammdatenBTR!L61","v":0}]
["Nettoengpassleistung Erzeugung (optional)","[MW]",null,"o",{"$f":"StammdatenBTR!C62","v":0},{"$f":"StammdatenBTR!D62","v":0},{"$f":"StammdatenBTR!E62","v":0},{"$f":"StammdatenBTR!F62","v":0},{"$f":"StammdatenBTR!G62","v":0},{"$f":"StammdatenBTR!H62","v":0},{"$f":"StammdatenBTR!I62","v":0},{"$f":"StammdatenBTR!J62","v":0},{"$f":"StammdatenBTR!K62","v":0},{"$f":"StammdatenBTR!L62","v":0}]
["Bruttonennleistung","[MW]",null,"x",{"$f":"StammdatenBTR!C63","v":0},{"$f":"StammdatenBTR!D63","v":0},{"$f":"StammdatenBTR!E63","v":0},{"$f":"StammdatenBTR!F63","v":0},{"$f":"StammdatenBTR!G63","v":0},{"$f":"StammdatenBTR!H63","v":0},{"$f":"StammdatenBTR!I63","v":0},{"$f":"StammdatenBTR!J63","v":0},{"$f":"StammdatenBTR!K63","v":0},{"$f":"StammdatenBTR!L63","v":0}]
["Geokoordinaten"]
["Längengrad Ost","WGS84, Grad mit Dezimalangabe, 6 Nachkommastellen",null,"x"]
["Breitengrad Nord","WGS84, Grad mit Dezimalangabe, 6 Nachkommastellen",null,"x"]
[]
["Nur PV-Anlagen"]
["Wechselrichterleistung kumuliert","[MW]",null,"x",{"$f":"StammdatenBTR!C66","v":0},{"$f":"StammdatenBTR!D66","v":0},{"$f":"StammdatenBTR!E66","v":0},{"$f":"StammdatenBTR!F66","v":0},{"$f":"StammdatenBTR!G66","v":0},{"$f":"StammdatenBTR!H66","v":0},{"$f":"StammdatenBTR!I66","v":0},{"$f":"StammdatenBTR!J66","v":0},{"$f":"StammdatenBTR!K66","v":0},{"$f":"StammdatenBTR!L66","v":0}]
["Absenkung 70%","Ja/Nein",null,"x",{"$f":"StammdatenBTR!C67","v":"Nein"},{"$f":"StammdatenBTR!D67","v":"Nein"},{"$f":"StammdatenBTR!E67","v":"Nein"},{"$f":"StammdatenBTR!F67","v":"Nein"},{"$f":"StammdatenBTR!G67","v":"Nein"},{"$f":"StammdatenBTR!H67","v":"Nein"},{"$f":"StammdatenBTR!I67","v":"Nein"},{"$f":"StammdatenBTR!J67","v":"Nein"},{"$f":"StammdatenBTR!K67","v":"Nein"},{"$f":"StammdatenBTR!L67","v":"Nein"}]
[]
["Nur Windenergieanlagen"]
["Anlagentyp",null,null,"x",{"$f":"StammdatenBTR!C70","v":0},{"$f":"StammdatenBTR!D70","v":0},{"$f":"StammdatenBTR!E70","v":0},{"$f":"StammdatenBTR!F70","v":0},{"$f":"StammdatenBTR!G70","v":0},{"$f":"StammdatenBTR!H70","v":0},{"$f":"StammdatenBTR!I70","v":0},{"$f":"StammdatenBTR!J70","v":0},{"$f":"StammdatenBTR!K70","v":0},{"$f":"StammdatenBTR!L70","v":0}]
["Nabenhöhe","[m]",null,"x",{"$f":"StammdatenBTR!C71","v":0},{"$f":"StammdatenBTR!D71","v":0},{"$f":"StammdatenBTR!E71","v":0},{"$f":"StammdatenBTR!F71","v":0},{"$f":"StammdatenBTR!G71","v":0},{"$f":"StammdatenBTR!H71","v":0},{"$f":"StammdatenBTR!I71","v":0},{"$f":"StammdatenBTR!J71","v":0},{"$f":"StammdatenBTR!K71","v":0},{"$f":"StammdatenBTR!L71","v":0}]
[]
["Nur Speicher"]
["Marktlokation Verbrauch","MaLo-ID, 11 Ziffern",null,"x"]
["Nettonennleistung Verbrauch","[MW]",null,"x",{"$f":"StammdatenBTR!C74","v":0},{"$f":"StammdatenBTR!D74","v":0},{"$f":"StammdatenBTR!E74","v":0},{"$f":"StammdatenBTR!F74","v":0},{"$f":"StammdatenBTR!G74","v":0},{"$f":"StammdatenBTR!H74","v":0},{"$f":"StammdatenBTR!I74","v":0},{"$f":"StammdatenBTR!J74","v":0},{"$f":"StammdatenBTR!K74","v":0},{"$f":"StammdatenBTR!L74","v":0}]
["Nettoengpassleistung Verbrauch","[MW]",null,"x",{"$f":"StammdatenBTR!C75","v":0},{"$f":"StammdatenBTR!D75","v":0},{"$f":"StammdatenBTR!E75","v":0},{"$f":"StammdatenBTR!F75","v":0},{"$f":"StammdatenBTR!G75","v":0},{"$f":"StammdatenBTR!H75","v":0},{"$f":"StammdatenBTR!I75","v":0},{"$f":"StammdatenBTR!J75","v":0},{"$f":"StammdatenBTR!K75","v":0},{"$f":"StammdatenBTR!L75","v":0}]
["Gesamtwirkungsgrad Speicher","[%] ganze Zahl","x",null,{"$f":"StammdatenBTR!C76","v":0},{"$f":"StammdatenBTR!D76","v":0},{"$f":"StammdatenBTR!E76","v":0},{"$f":"StammdatenBTR!F76","v":0},{"$f":"StammdatenBTR!G76","v":0},{"$f":"StammdatenBTR!H76","v":0},{"$f":"StammdatenBTR!I76","v":0},{"$f":"StammdatenBTR!J76","v":0},{"$f":"StammdatenBTR!K76","v":0},{"$f":"StammdatenBTR!L76","v":0}]
["Nutzbarer Energieinhalt","[MWh] Maximal möglicher Energieinhalt eines Speichers, der zur Verfügung steht, unabhängig vom Speichermedium und bezogen auf die vom Speichersystem lieferbare elektrische Energie. Dezimalzahl, max 6 Nachkommastellen","x",null,{"$f":"StammdatenBTR!C77","v":0},{"$f":"StammdatenBTR!D77","v":0},{"$f":"StammdatenBTR!E77","v":0},{"$f":"StammdatenBTR!F77","v":0},{"$f":"StammdatenBTR!G77","v":0},{"$f":"StammdatenBTR!H77","v":0},{"$f":"StammdatenBTR!I77","v":0},{"$f":"StammdatenBTR!J77","v":0},{"$f":"StammdatenBTR!K77","v":0},{"$f":"StammdatenBTR!L77","v":0}]
["max. Wirkleistung Einspeichern","[MW] Dezimalzahl, max 3 Nachkommastellen","x",null,{"$f":"StammdatenBTR!C78","v":0},{"$f":"StammdatenBTR!D78","v":0},{"$f":"StammdatenBTR!E78","v":0},{"$f":"StammdatenBTR!F78","v":0},{"$f":"StammdatenBTR!G78","v":0},{"$f":"StammdatenBTR!H78","v":0},{"$f":"StammdatenBTR!I78","v":0},{"$f":"StammdatenBTR!J78","v":0},{"$f":"StammdatenBTR!K78","v":0},{"$f":"StammdatenBTR!L78","v":0}]
["max. Wirkleistung Ausspeichern","[MW] Dezimalzahl, max 3 Nachkommastellen","x",null,{"$f":"StammdatenBTR!C79","v":0},{"$f":"StammdatenBTR!D79","v":0},{"$f":"StammdatenBTR!E79","v":0},{"$f":"StammdatenBTR!F79","v":0},{"$f":"StammdatenBTR!G79","v":0},{"$f":"StammdatenBTR!H79","v":0},{"$f":"StammdatenBTR!I79","v":0},{"$f":"StammdatenBTR!J79","v":0},{"$f":"StammdatenBTR!K79","v":0},{"$f":"StammdatenBTR!L79","v":0}]

{"sheet":"Definitionen","index":2,"n_rows":30,"n_cols":5,"rows_kept":30,"cut":false,"hidden":true,"merged":[]}
["Energieträger",null,"Vergütungsart",null,"Abrufart"]
["B01 (Biomasse)",null,"EEG",null,"Duldungsfall"]
["B02 (Braunkohle)",null,"KWKG",null,"Aufforderungsfall"]
["B03 (Fossiles Gas aus Kohle gewonnen)",null,"Sonstiges"]
["B04 (Erdgas)",null,null,null,"Abrufart_Aufforderungsfall"]
["B05 (Steinkohle)",null,null,null,"Delta"]
["B06 (Mineralölprodukte)",null,null,null,"Sollwert"]
["B09 (Geothermie)"]
["B10 (Pumpspeicher)",null,"Fixierung",null,"Bilanzierungsmodell"]
["B11 (Laufwasser)",null,"Exakt",null,"Planwert"]
["B12 (Speicherwasser, ohne Pumpspeicher)",null,"Max",null,"Prognose"]
["B14 (Kernenergie)",null,"Min"]
["B15 (Deponiegas, Grubengas, Klärgas)"]
["B16 (Solare Strahlungsenergie)",null,"Einheit",null,"Regelzonen"]
["B17 (Abfall)",null,"MW",null,"TransnetBW"]
["B18 (Windenergie Offshore)",null,"%",null,"TenneT TSO"]
["B19 (Windenergie Onshore)",null,null,null,"Amprion"]
["B20 (Mehrere, Sonstige, Unbekannt (nicht erneuerbar))",null,"Einheit Gradient",null,"50 Hertz"]
["Z01 (Batteriespeicher)",null,"MW/min",null,"Flensburg"]
[null,null,"%/min"]
[]
["TR Typ",null,"Lieferrichtung",null,"Abrechnungsmodell"]
["Stromerzeugungseinheit (SEE)",null,"Erzeugung",null,"Pauschal"]
["Stromspeichereinheit (SSE)",null,"Verbrauch",null,"Spitz"]
[{"$nulls":4},"Spitz Light"]
["Spannungsebenen",null,"Ja/Nein"]
["Höchstspannung",null,"Ja"]
["Hochspannung",null,"Nein"]
["Mittelspannung"]
["Niederspannung"]